Cogmind - Beta 15 @@@ ROGUE MODE // 2025.05.24 @ 01:01:44 // Winter2019/RPGLIKE Player: Toaster Result: Destroyed by P-70 Sage with High-powered Shock Rifle Performance ------------- Evolutions (6) 3000 Regions Visited (5) 1000 Robots Destroyed (103) 515 Value Destroyed (3410) 3410 Prototype IDs (9) 180 Alien Tech Used (0) 0 Bonus (1654) 1654 TOTAL SCORE: 9759 Bonus ------- High Alert Combat Kills 950 Follower Combat Kills 901 Friendly Fire -197 Cogmind --------- Core Integrity 0/2450 Matter 300/300 Energy 58/370 System Corruption 7% Temperature Cool (0) Movement Flying (45) Location -4/Factory Parts ------- > --- POWER (3) -------- Neutrino Core Fission-Nuclear Core > --- PROPULSION (3) --- Flying VTOL Exoskeleton > --- UTILITY (6) ------ Armored Scrap Engine Core Analyzer Improved Reaction Control System Graphene Brace Force Field > --- WEAPON (5) ------- Heavy Mace Powered Hammer Chainsword Great Axe Spear > --- INVENTORY (1) ---- Scythe Peak State ------------ > --- POWER ------------ Neutrino Core Fission-Nuclear Core > --- PROPULSION ------- Flying VTOL Exoskeleton > --- UTILITY ---------- Armored Scrap Engine Core Analyzer Improved Reaction Control System Graphene Brace Force Field > --- WEAPON ----------- Heavy Mace Powered Hammer Chainsword Great Axe Spear > --- INVENTORY -------- Scythe [Rating: 77] Favorites ----------- Power Improved Deuterium Engine Engine Improved Deuterium Engine Power Core Fission Core Propulsion Aluminum Leg Leg Aluminum Leg Flight Unit Constructs Utility Armored Scrap Engine Device Armored Scrap Engine Processor Advanced Melee Analysis Suite Protection Light Armor Plating Weapon Hammer Energy Gun EM Pulse Gun Ballistic Cannon Light Cannon Launcher Grenade Launcher Impact Weapon Hammer Slashing Weapon Chainsword Piercing Weapon Spear Build | -11 -10 -10 -7 -5 -4 ------- Run | Yrd Mat Sub Rec Fac Fac Slots Evolved 13 | 2 3 . 2 4 2 Power 2 | . . . . . 2 Propulsion 2 | 1 1 . . . . Utility 5 | . 2 . . 3 . Weapon 4 | 1 . . 2 1 . Parts Attached 45 | 5 10 1 12 12 5 Power 4 | 1 . . 1 1 1 Engine 2 | 1 . . 1 . . Core 2 | . . . . 1 1 Reactor . | . . . . . . Propulsion 4 | 2 2 . . . . Treads . | . . . . . . Leg 4 | 2 2 . . . . Wheel . | . . . . . . Hover . | . . . . . . Flight . | . . . . . . Utility 22 | . 5 . 7 6 4 Device 8 | . . . 4 1 3 Storage . | . . . . . . Processor 3 | . 1 . . 1 1 Hackware . | . . . . . . Protection 11 | . 4 . 3 4 . Artifact . | . . . . . . Weapon 15 | 2 3 1 4 5 . Energy Gun 2 | 2 . . . . . Energy Cannon . | . . . . . . Ballistic Gun . | . . . . . . Ballistic Cannon 1 | . 1 . . . . Launcher 1 | . . 1 . . . Special Weapon . | . . . . . . Impact Weapon 5 | . 2 . 1 2 . Slashing Weapon 5 | . . . 3 2 . Piercing Weapon 1 | . . . . 1 . Special Melee Weapon . | . . . . . . Unidentified Prototypes 1 | . . . 1 . . Parts Lost 7 | . . 1 2 3 1 Power . | . . . . . . Propulsion . | . . . . . . Utility 6 | . . 1 2 2 1 Weapon 1 | . . . . 1 . Highest Loss Streak 2 | . . 1 2 2 1 To Critical Strikes . | . . . . . . Average Backups . | . . 1 . . 1 Power . | . . . . . . Propulsion . | . . . . . . Utility . | . . . . . . Weapon . | . . 1 . . 1 Tool/Special . | . . . . . . Unused Backups . | . . . . . . Power . | . . . . . . Propulsion . | . . . . . . Utility . | . . . . . . Weapon . | . . . . . . Tool/Special . | . . . . . . Average Slot Usage (%) 83 | . 96 93 80 77 72 Engine 8 | . 13 11 9 1 . Core 1 | . . . . 4 6 Leg 15 | . 29 33 17 . . Flight 1 | . . . . 3 5 Device 8 | . . . 7 14 22 Processor 1 | . . . . 6 . Protection 12 | . 22 26 9 8 5 Impact Weapon 18 | . 24 20 20 11 11 Slashing Weapon 11 | . . . 15 20 11 Peak Build Rating 77 | 5 9 9 49 67 77 Average Rating 36 | 3 6 8 35 61 71 On Entrance 23 | . 5 9 8 49 67 Naked Turns . | . . . . . . Heaviest Build 48 | 9 18 18 34 43 48 Greatest Support 65 | 25 35 35 35 65 65 Greatest Overweight (x) 2 | . . . 2 . . Average Overweight (x) . | . . . . . . Largest Inventory Capacity 1 | 1 1 1 1 1 1 Average Capacity . | . 1 1 1 1 1 Most Carried 1 | . 1 1 1 1 1 Average Carried . | . . 1 . . 1 Final Capacity 1 | 1 1 1 1 1 1 Final Carried 1 | . 1 1 1 1 1 Scrap Engine Consumption 31 | . . . 15 12 4 Constructs Created 2 | . . . 1 . 1 Constructs Modified 8 | . . . 4 4 . Class Distribution -------------------- 46% | Gladiator 31% | Commander-Gladiator 18% | Commander-Construct 3% | Mutant Dominant Class ---------------- Gladiator | -10/Materials Gladiator | -10/Subcaves Commander-Gladiator | -7/Recycling Gladiator | -5/Factory Gladiator | -4/Factory Resources | -11 -10 -10 -7 -5 -4 ----------- Run | Yrd Mat Sub Rec Fac Fac Matter Collected 878 | 191 188 140 110 145 104 Remotely . | . . . . . . Salvage Created 4174 | . 864 72 1234 1104 900 Parts 127 | . 27 2 16 50 32 Haulers Intercepted 5 | . 2 . 3 . . Recyclers Shooed 3 | . 2 . 1 . . Parts Field Recycled . | . . . . . . Retrieved Matter . | . . . . . . Parts Self-Destructed . | . . . . . . Prevented 2 | . . 2 . . . Kills | -11 -10 -10 -7 -5 -4 ------- Run | Yrd Mat Sub Rec Fac Fac Combat Hostiles Destroyed 76 | . 20 4 5 26 21 Melee 60 | . 12 3 3 23 19 Guns 1 | . 1 . . . . Cannons 1 | . 1 . . . . Classes Destroyed 15 | . 6 1 2 6 . Builder 1 | . . . . 1 . Hauler 5 | . 2 . 3 . . Recycler 8 | . 1 . 7 . . Mechanic 2 | . . . . 1 1 Operator 2 | . 1 . . 1 . Turret 2 | . . 2 . . . Watcher 6 | . 3 . . 2 1 Swarmer 31 | . 5 4 1 9 12 Grunt 27 | . 15 . 1 8 3 Brawler 3 | . . . . 2 1 Duelist 2 | . . . . 2 . Sentry 8 | . . . 3 3 2 Hunter 1 | . . . . 1 . Programmer 4 | . . . . 1 3 Scrapper 1 | . . . 1 . . Best Kill Streak 10 | . 4 4 7 10 7 Combat Bots Only 8 | . 4 4 1 8 7 Max Kills in Single Turn 1 | . 1 1 1 1 1 Gunslinging . | . . . . . . Exploded . | . . . . . . Melee 1 | . 1 1 1 1 1 Uniques/NPCs Destroyed . | . . . . . . Combat | -11 -10 -10 -7 -5 -4 -------- Run | Yrd Mat Sub Rec Fac Fac Hostile Shots Fired 935 | . 90 120 177 310 238 Missed 391 | . 21 43 71 130 126 Hits 544 | . 69 77 106 180 112 Melee 8 | . . . . 6 2 Projectile 536 | . 69 77 106 174 110 AOE 2 | . . . . . 2 Critical Strikes 19 | . 1 . . 9 9 Actively Blocked 9 | . . . . . 9 Part Disruptions 2 | . . . . . 2 Damage Taken 7089 | . 735 577 864 3366 1547 Core 5056 | . 475 371 638 2409 1163 Absorbed by Shields 920 | . . . . 253 667 Redirected to Core 4055 | . 391 300 478 1890 996 Redirected to Shielding 15 | . . . 15 . . Ignored by Resistances 367 | . . . 31 156 180 Regen/Repaired (Parts) 170 | . . . 7 163 . Core Remaining (%) 59 | 100 . . 52 26 . Volleys Fired 21 | . 10 11 . . . Largest 2 | . 2 1 . . . Hottest 70 | . 70 30 . . . Shots Fired 31 | . 20 11 . . . Gun 10 | . 10 . . . . Cannon 10 | . 10 . . . . Launcher 11 | . . 11 . . . Special . | . . . . . . Kinetic 10 | . 10 . . . . Thermal . | . . . . . . Explosive 11 | . . 11 . . . Electromagnetic 10 | . 10 . . . . Robot Hit Streak 5 | . 3 5 . . . Robot Miss Streak 5 | . 5 1 . . . Penetration Max . | . . . . . . Secondary Targets . | . . . . . . Shots Hit Robots 343 | . 67 17 54 123 82 Core Hits 96 | . 17 11 14 29 25 Critical Kills 14 | . 4 1 2 5 2 Critical Parts Destroyed 38 | . 9 . 9 12 8 Critical Strikes 61 | . 14 1 11 22 13 Blast 1 | . 1 . . . . Smash 54 | . 13 1 11 18 11 Sever 6 | . . . . 4 2 Melee Attacks 392 | . 63 13 60 138 118 Impact 289 | . 63 13 51 94 68 Slashing 88 | . . . 9 44 35 Piercing 15 | . . . . . 15 Sneak Attacks 31 | . 6 . 17 6 2 Combat Hostiles 8 | . 1 . 5 1 1 Follow-up Attacks 99 | . 8 1 13 42 35 Damage Inflicted 13625 | . 1851 534 2426 5357 3457 Guns 49 | . 49 . . . . Cannons 110 | . 110 . . . . Explosions 272 | . . 272 . . . Melee 13175 | . 1673 262 2426 5357 3457 Ramming 19 | . 19 . . . . Kinetic 110 | . 110 . . . . Thermal . | . . . . . . Explosive 272 | . . 272 . . . Electromagnetic 49 | . 49 . . . . Impact 10489 | . 1673 262 2119 4112 2323 Slashing 2371 | . . . 307 1245 819 Piercing 315 | . . . . . 315 Highest Corruption 7 | . . . . 5 7 Average Corruption 3 | . . . . 2 3 Corruption Purged . | . . . . . . Corruption Blocked . | . . . . . . Effects 19 | . . . . 14 5 Message Errors 5 | . . . . 5 . Matter Fused 2 | . . . . 2 . Heat Flow Errors 1 | . . . . . 1 Energy Discharges 6 | . . . . 5 1 Parts Rejected 3 | . . . . 1 2 Data Loss (minor) 2 | . . . . 1 1 Overload Shots . | . . . . . . Overflow Damage 2958 | . 384 71 824 995 684 Projectiles . | . . . . . . Explosions 6 | . . 6 . . . Melee 2952 | . 384 65 824 995 684 Knockbacks 40 | . 11 . 4 14 11 Impact 37 | . 9 . 4 14 10 Kinetic 2 | . 2 . . . . Secondary 1 | . . . . . 1 Self-Inflicted Damage . | . . . . . . Shots . | . . . . . . Rammed . | . . . . . . Targets Rammed 3 | . 3 . . . . Kicked 3 | . 3 . . . . Crushed . | . . . . . . Highest Temperature 191 | . 36 5 9 27 191 Average Temperature 31 | . 13 3 4 7 75 Received Heat Transfer 1562 | . 321 222 237 700 82 Siege Activations . | . . . . . . Martial Activations . | . . . . . . Shielding Activations . | . . . . . . Robots Disrupted . | . . . . . . Combat Hostiles . | . . . . . . Robots Corrupted 21 | . 7 1 6 4 3 Combat Hostiles 14 | . 6 1 2 3 2 Parts Fried 34 | . 9 1 10 8 6 Impact Corruptions 113 | . 20 5 33 32 23 Robots Melted . | . . . . . . Combat Hostiles . | . . . . . . Parts Melted 2 | . . . 1 1 . Heat Transferred . | . . . . . . Parts Sabotaged 2 | . . . . 2 . Parts Stolen . | . . . . . . Parts Stripped . | . . . . . . Power Chain Reactions . | . . . . . . Alert | -11 -10 -10 -7 -5 -4 ------- Run | Yrd Mat Sub Rec Fac Fac Maximum Alert Level 4 | . 1 . . 4 3 Low Security (%) 67 | 100 90 . 100 . . Level 1 8 | . 9 . . 27 . Level 2 10 | . . . . 16 70 Level 3 5 | . . . . 13 29 Level 4 8 | . . . . 42 . Level 5 . | . . . . . . High Security . | . . . . . . Max Security . | . . . . . . Peak Influence 1395 | . 238 . 82 1395 903 Initial 683 | . . . 69 264 683 Average 262 | . 79 . 16 827 692 Influence Increases 4228 | . 723 150 531 2220 604 Destroy 0b10 Robot/C 2020 | . 400 120 120 960 420 Destroy 0b10 Robot/NC 175 | . 35 . 75 55 10 Destroy Leader 364 | . 100 . . 192 72 Allied During Kill 445 | . . . 74 371 . Successful Hack 158 | . 83 . 75 . . Select Force Hacks 180 | . 60 . 120 . . Disable Machine 60 | . . . 45 15 . Destroy Structure 36 | . . . 22 2 12 Advance Influence 250 | . . . . 250 . Partial Spotted 15 | . . . . 15 . Lose Combat Pursuer 525 | . 45 30 . 360 90 Influence Decreases 3331 | . 497 230 641 861 1102 Entered New Map 921 | . . 110 77 22 712 Time Decay 2100 | . 497 110 524 589 380 Lost Part 70 | . . 10 20 30 10 Lost Ally 240 | . . . 20 220 . Squads Dispatched 26 | . 5 . . 15 6 Investigation 5 | . 5 . . . . Extermination 5 | . . . . 3 2 Reinforcement 2 | . . . . 2 . Assault 6 | . . . . 5 1 Garrison 8 | . . . . 5 3 Intercept . | . . . . . . Searches Triggered . | . . . . . . Construction Impeded 1 | . . . . 1 . Haulers Reinforced . | . . . . . . Active Scanning Responses . | . . . . . . Cargo Convoy Interrupts . | . . . . . . Stealth | -11 -10 -10 -7 -5 -4 --------- Run | Yrd Mat Sub Rec Fac Fac Distress Signals 5 | . 1 . 1 1 2 Communications Jammed 1 | . . . . 1 . Distress Signals 1 | . . . . 1 . Times Spotted 168 | . 28 8 9 88 35 Peak Tracking Total 10 | . 4 4 4 8 10 Tactical Retreats 21 | . 2 1 . 14 4 Traps | -11 -10 -10 -7 -5 -4 ------- Run | Yrd Mat Sub Rec Fac Fac Traps Triggered 6 | . 2 . . 2 2 Indirectly . | . . . . . . Trap Hack Attempts . | . . . . . . Triggered . | . . . . . . Disarmed . | . . . . . . Reprogrammed . | . . . . . . Reused . | . . . . . . Traps Extracted . | . . . . . . Installed . | . . . . . . Triggered . | . . . . . . Machines | -11 -10 -10 -7 -5 -4 ---------- Run | Yrd Mat Sub Rec Fac Fac Machines Disabled 10 | . . 4 5 1 . Max in Single Turn 1 | . . 1 . . . Garrison Access 1 | . . . . 1 . Machines Repaired . | . . . . . . Machines Dismantled . | . . . . . . Machines Sabotaged . | . . . . . . Overloaded Fab Kills . | . . . . . . Hacking | -11 -10 -10 -7 -5 -4 --------- Run | Yrd Mat Sub Rec Fac Fac Machines Accessed 24 | . 10 . 11 2 1 Terminals 16 | . 8 . 5 2 1 Fabricators . | . . . . . . Repair Stations . | . . . . . . Recycling Units 7 | . 2 . 5 . . Scanalyzers . | . . . . . . Garrison Access . | . . . . . . Total Hacks 50 | . 24 . 23 2 1 Successful 40 | . 18 . 20 2 . Failed 10 | . 6 . 3 . 1 Catastrophic 2 | . 2 . . . . Database Lockouts . | . . . . . . Manual 28 | . 14 . 11 2 1 Terminals 30 | . 21 . 6 2 1 Fabricators . | . . . . . . Repair Stations . | . . . . . . Recycling Units 18 | . 3 . 15 . . Scanalyzers . | . . . . . . Garrison Access . | . . . . . . Terminal Hacks 8 | . 6 . 2 . . Prototype ID Bank 2 | . 2 . . . . Locate Traps 3 | . 3 . . . . Hauler Manifests 1 | . 1 . . . . Release Object 2 | . . . 2 . . Fabricator Hacks . | . . . . . . Repair Station Hacks . | . . . . . . Recycling Unit Hacks 10 | . 1 . 9 . . Report Inventory 9 | . 1 . 8 . . Retrieve Components 1 | . . . 1 . . Scanalyzer . | . . . . . . Garrison Access Hacks . | . . . . . . Unauthorized Hacks 22 | . 11 . 9 2 . Terminals 16 | . 9 . 5 2 . Botnet 15 | . 8 . 5 2 . Search 1 | . 1 . . . . Fabricators . | . . . . . . Repair Stations . | . . . . . . Recycling Units 6 | . 2 . 4 . . Tunnel 6 | . 2 . 4 . . Scanalyzers . | . . . . . . Garrison Access . | . . . . . . Data Cores Recovered 1 | . 1 . . . . Used . | . . . . . . Hacking Detections 15 | . 8 . 5 1 1 Full Trace Events 1 | . . . 1 . . Feedback Events . | . . . . . . Feedback Blocked . | . . . . . . Robot Schematics Acquired . | . . . . . . Robots Built . | . . . . . . Authchips . | . . . . . . Time . | . . . . . . Total Robot Build Rating . | . . . . . . Part Schematics Acquired . | . . . . . . Parts Built . | . . . . . . Authchips . | . . . . . . Time . | . . . . . . Total Part Build Rating . | . . . . . . Parts Repaired . | . . . . . . Time . | . . . . . . Parts Recycled . | . . . . . . Recycled Matter . | . . . . . . Retrieved Matter . | . . . . . . Retrieved Components 2 | . . . 2 . . Parts Scanalyzed . | . . . . . . Part Schematics Acquired . | . . . . . . Parts Damaged . | . . . . . . Bothacking | -11 -10 -10 -7 -5 -4 ------------ Run | Yrd Mat Sub Rec Fac Fac Used RIF Installer . | . . . . . . Robots Hacked . | . . . . . . Non-combat . | . . . . . . Combat . | . . . . . . Robot Hacks Applied . | . . . . . . Relay Couplers Released 3 | . . . . 3 . Machine Destruction 2 | . . . . 2 . Programmers 1 | . . . . 1 . Fabnet Peak Effective % . | . . . . . . Robots Rewired 14 | . . . 14 . . Allies Hacked 2 | . . . . 2 . Hacks Repelled . | . . . . . . Allies | -11 -10 -10 -7 -5 -4 -------- Run | Yrd Mat Sub Rec Fac Fac Total Allies 14 | . . . 14 . . Largest Group 14 | . . . 14 13 . Highest-Rated Group 389 | . . . 389 355 . Highest-Rated Ally 40 | . . . 40 40 . Total Orders 12 | . . . 12 . . STAY 5 | . . . 5 . . FOLLOW 7 | . . . 7 . . Ally Attacks 148 | . . . 26 122 . Total Damage 4122 | . . . 721 3401 . Kills 36 | . . . 6 30 . Allies Corrupted . | . . . . . . Allies Melted . | . . . . . . Intel | -11 -10 -10 -7 -5 -4 ------- Run | Yrd Mat Sub Rec Fac Fac Active Infowar (turns) 300 | . 105 . 75 120 . Optics 105 | . 105 . . . . Jamming 195 | . . . 75 120 . Robot Analysis Total . | . . . . . . Derelict Logs Recovered . | . . . . . . Drone Launches . | . . . . . . Drone Recoveries . | . . . . . . Exploration | -11 -10 -10 -7 -5 -4 ------------- Run | Yrd Mat Sub Rec Fac Fac Turns Passed 9369 | 59 2408 224 3941 1857 880 Spaces Moved 6909 | 47 1641 136 2471 1368 1246 Core 15 | 15 . . . . . Treads 474 | . . . . 474 . Legs 4278 | 32 1641 136 2333 136 . Wheels . | . . . . . . Hover 138 | . . . 138 . . Flight 2004 | . . . . 758 1246 Fastest Speed 45 | 50 120 120 103 45 45 Average Speed 104 | 97 120 120 137 77 45 Slowest Speed 226 | 120 120 120 226 103 45 Overloaded Moves . | . . . . . . Propulsion Burnouts . | . . . . . . Robots Hopped . | . . . . . . Potential Cave-ins . | . . . . . . Cave-ins Triggered . | . . . . . . Exploration Rate (%) 41 | 4 97 7 99 30 14 Regions Visited 5 Branch Regions 2 Pre-discovered Areas 6 | . 2 . 4 . . Known Exits Taken . | . . . . . . Unknown Exits Taken 5 | 1 1 1 1 1 . Scrap Searched . | . . . . . . Spaces Dug 7 | . . . . 1 6 Terrain Destroyed 25 | . . 18 . 1 6 Melee 7 | . . . . 1 6 Projectile . | . . . . . . AOE 18 | . . 18 . . . Terrain Rammed . | . . . . . . Walls Destroyed . | . . . . . . Machines Disabled . | . . . . . . Actions | -11 -10 -10 -7 -5 -4 --------- Run | Yrd Mat Sub Rec Fac Fac Total 8539 | 57 1963 163 2928 1998 1430 Wait 1031 | 6 216 2 266 449 92 Move 6904 | 46 1640 135 2470 1367 1246 Hop . | . . . . . . Pick Up 7 | . 1 . 3 3 . Fast Attach 40 | 5 9 . 9 11 6 Attach 4 | . . . 1 3 . Detach 5 | . 2 . 1 1 1 Swap 8 | . 1 3 2 1 1 Drop 24 | . 5 . 12 4 3 Fire 21 | . 10 11 . . . Melee 258 | . 52 12 41 85 68 Ram . | . . . . . . Kick 3 | . 3 . . . . Crush . | . . . . . . Escape Stasis 4 | . . . . . 4 Rewire 107 | . . . 107 . . Trap . | . . . . . . Miscellaneous 123 | . 24 . 16 74 9 Route ------- -11/Scrapyard -10/Materials (discovered 6 exits: [*Mat x3] / [*Min x2] / [*Sub]) -10/Subcaves (discovered 2 exits: [*Mat] / *Rec) -7/Recycling -5/Factory -4/Factory History --------- Turn | Location | Event 6 | -11/Scrapyard | Upgraded with Propulsion slot (x1) 6 | -11/Scrapyard | Upgraded with Weapon slot (x1) 6 | -11/Scrapyard | Discovered new exit (range 16) 60 | -11/Scrapyard | Entered Materials 181 | -10/Materials | Discovered new exit (range 12) 308 | -10/Materials | Build established: Mutant 641 | -10/Materials | Build established: Gladiator 736 | -10/Materials | Discovered new exit (range 15) 1109 | -10/Materials | Discovered new exit (range 15) 1163 | -10/Materials | Reached level 2 1217 | -10/Materials | Upgraded with Utility slot (x1) 1217 | -10/Materials | Upgraded with Utility slot (x1) 1471 | -10/Materials | Discovered new exit (range 12) 1539 | -10/Materials | Discovered new exit (range 5) 1650 | -10/Materials | Discovered new exit (range 8) 2352 | -10/Materials | Reached level 3 2409 | -10/Materials | Upgraded with Propulsion slot (x1) 2468 | -10/Materials | Entered Subcaves 2469 | -10/Subcaves | Approached by a straggling Scientist 2477 | -10/Subcaves | Discovered new exit (range 12) 2508 | -10/Subcaves | Shifting Twisted Machinery released Battle Rifle 2515 | -10/Subcaves | Shifting Twisted Machinery released Mak. Shrapnel Gun 2523 | -10/Subcaves | Discovered new exit (range 15) 2569 | -10/Subcaves | Reached level 4 2592 | -10/Subcaves | Core integrity fell below 50% 2692 | -10/Subcaves | Entered Recycling 2748 | -7/Recycling | Core integrity fell below 20% 2821 | -7/Recycling | Upgraded with Weapon slot (x1) 2951 | -7/Recycling | Reached level 5 2951 | -7/Recycling | Upgraded with Weapon slot (x1) 3143 | -7/Recycling | Build established: Commander-Gladiator 3821 | -7/Recycling | Scanned before Scraplab entrance 4252 | -7/Recycling | Angered Scraplab inhabitants 4299 | -7/Recycling | Found Prototype Device 4299 | -7/Recycling | Identified Scrap Engine 4504 | -7/Recycling | Discovered new exit (range 16) 5313 | -7/Recycling | Build established: Commander-Construct 6166 | -7/Recycling | Reached level 6 6633 | -7/Recycling | Entered Factory 6633 | -5/Factory | Accompanied by 13 allies 6635 | -5/Factory | Reached level 7 6683 | -5/Factory | Core integrity fell below 50% 6722 | -5/Factory | Upgraded with Utility slot (x1) 6921 | -5/Factory | Reached level 8 6962 | -5/Factory | Upgraded with Utility slot (x1) 7021 | -5/Factory | Build established: Commander-Gladiator 7086 | -5/Factory | Lost 4 allies 7202 | -5/Factory | Garrison activated, responded to threat 7222 | -5/Factory | Reached level 9 7223 | -5/Factory | Upgraded with Weapon slot (x1) 7311 | -5/Factory | Garrison activated, responded to threat 7366 | -5/Factory | Reached level 10 7374 | -5/Factory | Upgraded with Utility slot (x1) 7410 | -5/Factory | Garrison activated, responded to threat 7448 | -5/Factory | Noticed a derelict Sapper rigging charges 7533 | -5/Factory | First assault squad dispatched 7590 | -5/Factory | Reached level 11 7657 | -5/Factory | Destroyed 8 combat bots 7711 | -5/Factory | Core integrity fell below 20% 7721 | -5/Factory | Reached level 12 7757 | -5/Factory | Build established: Gladiator 8231 | -5/Factory | Spotted B-75 Beast 8487 | -5/Factory | Discovered new exit (range 5) 8490 | -5/Factory | Entered another Factory area 8491 | -4/Factory | Core integrity fell below 50% 8492 | -4/Factory | Reached level 13 8716 | -4/Factory | Upgraded with Power slot (x1) 8722 | -4/Factory | Upgraded with Power slot (x1) 8740 | -4/Factory | First assault squad dispatched 8964 | -4/Factory | Core integrity fell below 20% 8964 | -4/Factory | Reached level 14 9104 | -4/Factory | Garrison activated, responded to threat 9170 | -4/Factory | Destroyed 7 combat bots 9233 | -4/Factory | Reached level 15 9286 | -4/Factory | Spotted B-86 Titan 9370 | -4/Factory | Destroyed by P-70 Sage with High-powered Shock Rifle Last Messages --------------- 09352_ K-01 Serf collects debris. 09353_ S-27 Virus knocked back. 09356_ K-01 Serf collects debris. 09356_ Hvy. Mace follow-up attack on S-27 Virus. 09356_ S-27 Virus destroyed. 09359_ Destroyed Imp. Heat Sink. 09359_ Destroyed Imp. Remote Datajack. 09359_ P-70 Sage system corrupted by crushing effect. 09359_ P-70 Sage knocked back. 09359_ Chainsword follow-up attack on P-70 Sage. 09359_ Assembly Bed disabled. 09360_ K-01 Serf collects debris. 09362_ Destroyed Antigrav System. 09362_ P-70 Sage system corrupted by crushing effect. 09362_ P-70 Sage knocked back. 09362_ P-70 Sage resets P-70 Sage, system corruption cleaned. 09363_ K-01 Serf collects debris. 09365_ Acquired 10 matter. 09367_ K-01 Serf collects debris. 09368_ Slug penetrates P-70 Sage. Map ----- +----------------------------------------------------+ | ?????????????????????????????????????????????????? | | ?????????????????????????????????????????????????? | | ?????????????????????????????????????????????????? | | ?????????????????????????????????????????????????? | | ?????????????????????????????????????????????????? | | ???????????????????????????????????????? ??? | | ??????????????????????????????????????? ?? | | ????????????????????????? ??????????? ?? | | ????????????????????? ?= ??????????? ?? | | ?????????????????????? ???????????? ??? | | ????????????????????? ???????????? ??? | | ?????????????????????"" ????????????# #??? | | ????????????????????""" ????????????# #??? | | ??????????????????? """ #???????????# #??? | | ???????????????????? #???????????# #??? | | ???????????????????? #???????????# #??? | | ????????????????????"""" #?########### #??? | | ?????????????? """" #?# ! # #??? | | ?????????????? """" #?# # #??? | | ?????????????? !=#?# """""" #? #??? | | ????????????? ?? =k=### """""" # #??? | | ???????????? """"""*%%[/ """""" + #??? | | ??????????? """ ""%Y### """""" # ? #??? | | ???????? """" " =#?# # ? #??? | | ???????? " #?#! # #### | | ???????? @p #?#######+### % | | ???????? u s #??????# | | ???????? p #??????# ^ | | ?????????######+########+####??????# "" | | ???????????????????????????????????# "" ^ | | ???????????????????????????????????#*! T" | | ???????????????????????????????????#! "" | | ???????????????????????????????????# ?"" | | ???????????????????????????????????# ? ###### | | ???????????????????????????????????????""" #????? | | ???????????????????????????????????????""" ?????? | | ????????????????????????????????????????"" ?????? | | ????????????????????????????????????????? ?????? | | ?????????????????????????????????????????" ??????? | | ?????????????????????????????????????????? ??????? | | ?????????????????????????????????????????????????? | | ?????????????????????????????????????????????????? | | ?????????????????????????????????????????????????? | | ?????????????????????????????????????????????????? | | ?????????????????????????????????????????????????? | | ?????????????????????????????????????????????????? | | ?????????????????????????????????????????????????? | | ?????????????????????????????????????????????????? | | ?????????????????????????????????????????????????? | | ?????????????????????????????????????????????????? | +----------------------------------------------------+ Best States ------------- Heat Dissipation 39 Energy Generation 28 Energy Capacity 370 Matter Stores 300 Matter Capacity 300 Sight Range 18 Robot Scan Range 20 Terrain Scan Density 10 Jamming Range 12 Armor Coverage 450 Resistance: KI 10 Resistance: TH 10 Resistance: EX 25 Resistance: EM 20 Propulsion Shielding 66 Evasion (%) 71 Melee Accuracy 8 Core Analysis 6 Recoil Reduction 3 Item Schematics ----------------- None Robot Schematics ------------------ None Fabricated ------------ Nothing Repaired ---------- Nothing Alien Tech Used ----------------- None Achievements -------------- None Challenges ------------ None RPGLIKE | -11 -10 -10 -7 -5 -4 --------- Run | Yrd Mat Sub Rec Fac Fac Levels Raised 14 | . 2 1 2 6 3 XP Earned 24464 | 3000 3120 1600 3044 9581 4119 XP Spent 23860 | 1350 3850 . 3650 10605 4405 Upgrades 70 | 4 11 . 19 25 11 Power Slot 2 | . . . . . 2 Propulsion Slot 2 | 1 1 . . . . Utility Slot 5 | . 2 . . 3 . Weapon Slot 4 | 1 . . 2 1 . Core Integrity 37 | . . . 16 12 9 Mass Support 1 | 1 . . . . . Inventory Capacity 1 | 1 . . . . . Sensor Range 10 | . 4 . . 6 . Melee Accuracy 4 | . 4 . . . . KI Resistance % 2 | . . . 1 1 . TH Resistance % 2 | . . . . 2 . Protomatter Created 648 | . 164 . 15 338 131 Integrity Restored 2641 | . 484 . 372 1599 186 Core 2603 | . 446 . 372 1599 186 Parts 38 | . 38 . . . . Protomatter Decayed 199 | . . . . 145 54 Game ------ Seed DimensionalHelicalRedirector Manual? 0 Play Time 01:27:17 Cumulative 114.4 hours Start 2025.05.23 @ 23:35:15 End 2025.05.24 @ 01:01:44 Sessions 1 Manual Loads 0 Difficulty Rogue Special Mode Winter2019/RPGLIKE Game No. 52 Rogue 48 Adventurer 4 Explorer 0 Win Type - Total 1 Types 1/0/0/0/0/0/0/0/0/0 Lore% 56 Gallery% 44 Achievement% 50 Wizard Run 0 Options --------- Layout 0 ASCII 0 Keyboard 0 Movement Arrows Keybinds 0 Fullscreen 2 Font 32/SmallcapsGlow Map View 88x55 Zoom Use 0% Tactical HUD 1 Map Filters NONE Filters NONE Steam 1 RUN: 59d10494-640b-42fc-8385-214758822fef